[Event "*** Titled Tuesday Blitz"]
[Site "Chess.com"]
[Date "2020.05.12"]
[Round "7"]
[White "tsvet2005"]
[Black "giantslayer83"]
[Result "1-0"]
[WhiteElo "2498"]
[BlackElo "2686"]
[TimeControl "180+1"]
[EndTime "11:17:32 PDT"]
[Termination "tsvet2005 won by checkmate"]

1. d4 {[%clk 0:03:00.9]} 1... Nf6 {[%clk 0:02:59.5]} 2. c4 {[%clk 0:03:01.3]}
2... e6 {[%clk 0:02:59.4]} 3. Nc3 {[%clk 0:03:01.6]} 3... Bb4 {[%clk 0:02:58.3]}
4. f3 {[%clk 0:03:02.1]} 4... c5 {[%clk 0:02:56.7]} 5. d5 {[%clk 0:03:02.2]}
5... b5 {[%clk 0:02:57]} 6. e4 {[%clk 0:03:02.3]} 6... d6 {[%clk 0:02:57.3]} 7.
Bd2 {[%clk 0:03:00.3]} 7... bxc4 {[%clk 0:02:55.6]} 8. Bxc4 {[%clk 0:02:55.5]}
8... O-O {[%clk 0:02:53.1]} 9. Nge2 {[%clk 0:02:55.2]} 9... Ba6 {[%clk 0:02:43]}
10. Bxa6 {[%clk 0:02:37.6]} 10... Nxa6 {[%clk 0:02:43.9]} 11. dxe6 {[%clk
0:02:35.9]} 11... fxe6 {[%clk 0:02:43.6]} 12. Nf4 {[%clk 0:02:36.3]} 12... Qe8
{[%clk 0:02:23.5]} 13. O-O {[%clk 0:02:27.4]} 13... c4 {[%clk 0:02:23.4]} 14. a3
{[%clk 0:02:16.1]} 14... Bc5+ {[%clk 0:02:22.2]} 15. Kh1 {[%clk 0:02:16.5]}
15... Nc7 {[%clk 0:02:15.4]} 16. Na4 {[%clk 0:02:05.2]} 16... Bd4 {[%clk
0:01:42.5]} 17. Ba5 {[%clk 0:01:50.4]} 17... Nb5 {[%clk 0:01:38]} 18. Ne2 {[%clk
0:01:23.2]} 18... e5 {[%clk 0:01:29.4]} 19. Nac3 {[%clk 0:01:21.7]} 19... Nxc3
{[%clk 0:01:18.9]} 20. Bxc3 {[%clk 0:01:22.6]} 20... Bc5 {[%clk 0:01:18.3]} 21.
b4 {[%clk 0:01:13]} 21... cxb3 {[%clk 0:01:16.6]} 22. Qxb3+ {[%clk 0:01:13.5]}
22... Kh8 {[%clk 0:01:15.2]} 23. Rfd1 {[%clk 0:01:12.9]} 23... Rb8 {[%clk
0:01:12.1]} 24. Qa2 {[%clk 0:01:11.3]} 24... Nh5 {[%clk 0:00:53.2]} 25. Bb4
{[%clk 0:01:02.1]} 25... Bxb4 {[%clk 0:00:40.5]} 26. axb4 {[%clk 0:01:03]} 26...
Qg6 {[%clk 0:00:40.7]} 27. Qxa7 {[%clk 0:00:52.5]} 27... Rxb4 {[%clk 0:00:40.3]}
28. Qe7 {[%clk 0:00:49.7]} 28... Rfb8 {[%clk 0:00:39.4]} 29. Rxd6 {[%clk
0:00:42.3]} 29... Qe8 {[%clk 0:00:10.1]} 30. Qxe8+ {[%clk 0:00:20]} 30... Rxe8
{[%clk 0:00:11]} 31. Nc3 {[%clk 0:00:20.3]} 31... h6 {[%clk 0:00:10.3]} 32. Nd5
{[%clk 0:00:19.9]} 32... Rb2 {[%clk 0:00:10.4]} 33. h3 {[%clk 0:00:18.9]} 33...
Rc8 {[%clk 0:00:09.1]} 34. Ne3 {[%clk 0:00:06.9]} 34... Rc3 {[%clk 0:00:08]} 35.
Nd1 {[%clk 0:00:06.1]} 35... Ng3+ {[%clk 0:00:07.6]} 36. Kh2 {[%clk 0:00:06.6]}
36... Nf1+ {[%clk 0:00:04.8]} 37. Kg1 {[%clk 0:00:06.8]} 37... Rcc2 {[%clk
0:00:04.5]} 38. Nxb2 {[%clk 0:00:06.8]} 38... Ne3 {[%clk 0:00:04.9]} 39. Nd3
{[%clk 0:00:06]} 39... Rxg2+ {[%clk 0:00:04.6]} 40. Kh1 {[%clk 0:00:06.4]} 40...
Rg3 {[%clk 0:00:05]} 41. Nxe5 {[%clk 0:00:06.4]} 41... Rxh3+ {[%clk 0:00:04.8]}
42. Kg1 {[%clk 0:00:06.9]} 42... Kh7 {[%clk 0:00:04]} 43. Kf2 {[%clk 0:00:07.2]}
43... Nc2 {[%clk 0:00:03.5]} 44. Rg1 {[%clk 0:00:07.8]} 44... Rh2+ {[%clk
0:00:02.9]} 45. Rg2 {[%clk 0:00:07.7]} 45... Rh5 {[%clk 0:00:02.9]} 46. Rd7
{[%clk 0:00:08.1]} 46... Kg8 {[%clk 0:00:01.9]} 47. Rdxg7+ {[%clk 0:00:07.7]}
47... Kf8 {[%clk 0:00:02.3]} 48. Rg8+ {[%clk 0:00:08]} 48... Ke7 {[%clk
0:00:02.6]} 49. R2g7+ {[%clk 0:00:08.9]} 49... Kd6 {[%clk 0:00:02.9]} 50. Ng4
{[%clk 0:00:09.5]} 50... Kc5 {[%clk 0:00:03.2]} 51. Rc7+ {[%clk 0:00:08.4]}
51... Kd4 {[%clk 0:00:03.6]} 52. Rxc2 {[%clk 0:00:09.1]} 52... Kd3 {[%clk
0:00:03.8]} 53. Rc7 {[%clk 0:00:08]} 53... Rb5 {[%clk 0:00:03.6]} 54. Rd8+
{[%clk 0:00:07.9]} 54... Rd5 {[%clk 0:00:03.1]} 55. Rxd5# {[%clk 0:00:08.8]} 1-0

[Event "*** Titled Tuesday Blitz"]
[Site "Chess.com"]
[Date "2020.05.12"]
[Round "7"]
[White "Gajuchess"]
[Black "TregubovP"]
[Result "1/2-1/2"]
[WhiteElo "2695"]
[BlackElo "2546"]
[TimeControl "180+1"]
[EndTime "11:17:35 PDT"]
[Termination "Game drawn by agreement"]

1. d4 {[%clk 0:02:58]} 1... Nf6 {[%clk 0:02:59.4]} 2. Nf3 {[%clk 0:02:58.1]}
2... e6 {[%clk 0:02:57.6]} 3. c4 {[%clk 0:02:57.4]} 3... Bb4+ {[%clk 0:02:56.5]}
4. Nbd2 {[%clk 0:02:57.3]} 4... O-O {[%clk 0:02:54.9]} 5. a3 {[%clk 0:02:57.8]}
5... Be7 {[%clk 0:02:55.2]} 6. e4 {[%clk 0:02:56.8]} 6... d6 {[%clk 0:02:55.8]}
7. Be2 {[%clk 0:02:54.6]} 7... Nbd7 {[%clk 0:02:52.1]} 8. O-O {[%clk 0:02:49.5]}
8... e5 {[%clk 0:02:52.3]} 9. Qc2 {[%clk 0:02:46.8]} 9... Re8 {[%clk 0:02:47.4]}
10. Nb1 {[%clk 0:02:44.2]} 10... exd4 {[%clk 0:02:45.5]} 11. Nxd4 {[%clk
0:02:43.9]} 11... Nc5 {[%clk 0:02:45.6]} 12. Nc3 {[%clk 0:02:43.9]} 12... Nfxe4
{[%clk 0:02:39.7]} 13. Nxe4 {[%clk 0:02:37.3]} 13... Nxe4 {[%clk 0:02:39.6]} 14.
Qxe4 {[%clk 0:02:38.2]} 14... Bf6 {[%clk 0:02:39.8]} 15. Qd3 {[%clk 0:02:38.1]}
15... Bxd4 {[%clk 0:02:39.9]} 16. Qxd4 {[%clk 0:02:39]} 16... Rxe2 {[%clk
0:02:38.1]} 17. Be3 {[%clk 0:02:39.5]} 17... Qf6 {[%clk 0:02:36.1]} 18. Qxf6
{[%clk 0:02:29.2]} 18... gxf6 {[%clk 0:02:35.6]} 19. Bd4 {[%clk 0:02:30.1]}
19... Kg7 {[%clk 0:02:30.7]} 20. Rfe1 {[%clk 0:02:25.7]} 20... Re6 {[%clk
0:02:12.3]} 21. Re3 {[%clk 0:02:22.2]} 21... Rxe3 {[%clk 0:02:11.3]} 22. fxe3
{[%clk 0:02:23.1]} 22... Kg6 {[%clk 0:02:09.6]} 23. Rf1 {[%clk 0:02:23]} 23...
f5 {[%clk 0:02:08]} 24. Rf3 {[%clk 0:02:23.1]} 24... f6 {[%clk 0:01:50.6]} 25.
e4 {[%clk 0:02:20.2]} 25... Bd7 {[%clk 0:01:44.7]} 26. exf5+ {[%clk 0:02:15.8]}
26... Bxf5 {[%clk 0:01:40.8]} 27. g4 {[%clk 0:02:15.1]} 27... Bxg4 {[%clk
0:01:34.9]} 28. Rxf6+ {[%clk 0:02:16]} 28... Kh5 {[%clk 0:01:26.8]} 29. Be3
{[%clk 0:02:10.5]} 29... Bd7 {[%clk 0:01:12.2]} 30. Rh6+ {[%clk 0:02:01.8]}
30... Kg4 {[%clk 0:01:11.4]} 31. Rxh7 {[%clk 0:02:00.5]} 31... Bc6 {[%clk
0:01:05.3]} 32. Kf2 {[%clk 0:01:56.4]} 32... Rf8+ {[%clk 0:00:59.1]} 33. Ke2
{[%clk 0:01:56.6]} 33... Bf3+ {[%clk 0:00:57.7]} 34. Kd2 {[%clk 0:01:56.2]}
34... c5 {[%clk 0:00:55.9]} 35. Rh6 {[%clk 0:01:06.5]} 35... Rd8 {[%clk
0:00:53.6]} 36. h3+ {[%clk 0:01:03.5]} 36... Kf5 {[%clk 0:00:52.8]} 37. Ke1
{[%clk 0:01:01.4]} 37... b6 {[%clk 0:00:49.5]} 38. Kf2 {[%clk 0:01:01.1]} 38...
Be4 {[%clk 0:00:44.2]} 39. Ke2 {[%clk 0:00:59.9]} 39... d5 {[%clk 0:00:42.7]}
40. cxd5 {[%clk 0:01:00.2]} 40... Bxd5 {[%clk 0:00:41.5]} 41. h4 {[%clk
0:01:00.3]} 41... Bc4+ {[%clk 0:00:40]} 42. Kf2 {[%clk 0:01:00.7]} 42... Rd3
{[%clk 0:00:31.8]} 43. h5 {[%clk 0:00:47.6]} 43... Rb3 {[%clk 0:00:31.4]} 44.
Bc1 {[%clk 0:00:46.3]} 44... Rh3 {[%clk 0:00:30.5]} 45. Rh8 {[%clk 0:00:45.6]}
45... Bd5 {[%clk 0:00:26.8]} 46. h6 {[%clk 0:00:42.5]} 46... Kg4 {[%clk
0:00:25.2]} 47. Rd8 {[%clk 0:00:37.3]} 47... Be4 {[%clk 0:00:21.3]} 48. Rg8+
{[%clk 0:00:35.3]} 48... Kf5 {[%clk 0:00:21.3]} 49. Rg7 {[%clk 0:00:34.5]} 49...
a5 {[%clk 0:00:20.4]} 50. b4 {[%clk 0:00:25.1]} 50... axb4 {[%clk 0:00:20.2]}
51. axb4 {[%clk 0:00:26]} 51... cxb4 {[%clk 0:00:20.6]} 52. Be3 {[%clk
0:00:20.7]} 52... Rh2+ {[%clk 0:00:16.9]} 53. Ke1 {[%clk 0:00:15.3]} 53... Bd3
{[%clk 0:00:14.7]} 54. h7 {[%clk 0:00:12.9]} 54... Ke6 {[%clk 0:00:11.9]} 55.
Bxb6 {[%clk 0:00:04.3]} 55... Rxh7 {[%clk 0:00:10.2]} 56. Rxh7 {[%clk
0:00:03.7]} 56... Bxh7 {[%clk 0:00:10.1]} 57. Kd2 {[%clk 0:00:04.6]} 57... Kd5
{[%clk 0:00:10.2]} 58. Kc1 {[%clk 0:00:05.5]} 58... Kc4 {[%clk 0:00:10.4]} 59.
Kb2 {[%clk 0:00:05.1]} 59... b3 {[%clk 0:00:10.9]} 60. Bd8 {[%clk 0:00:05.9]}
1/2-1/2

[Event "*** Titled Tuesday Blitz"]
[Site "Chess.com"]
[Date "2020.05.12"]
[Round "7"]
[White "Mizner"]
[Black "Norival"]
[Result "1-0"]
[WhiteElo "2530"]
[BlackElo "2638"]
[TimeControl "180+1"]
[EndTime "11:17:36 PDT"]
[Termination "Mizner won on time"]

1. d4 {[%clk 0:03:00.9]} 1... d5 {[%clk 0:02:59.8]} 2. c4 {[%clk 0:03:01]} 2...
c6 {[%clk 0:02:59.9]} 3. cxd5 {[%clk 0:03:00.8]} 3... cxd5 {[%clk 0:03:00]} 4.
Nf3 {[%clk 0:03:01.1]} 4... Nc6 {[%clk 0:03:00.3]} 5. Nc3 {[%clk 0:03:01.2]}
5... Nf6 {[%clk 0:03:00.2]} 6. Bf4 {[%clk 0:03:01.2]} 6... a6 {[%clk 0:02:59.8]}
7. Rc1 {[%clk 0:03:00.3]} 7... Bf5 {[%clk 0:02:55.8]} 8. e3 {[%clk 0:02:53.8]}
8... Rc8 {[%clk 0:02:55.6]} 9. Ne5 {[%clk 0:02:48]} 9... Bd7 {[%clk 0:02:33.5]}
10. Nxd7 {[%clk 0:02:14]} 10... Qxd7 {[%clk 0:02:32.4]} 11. Na4 {[%clk
0:02:13.4]} 11... Qd8 {[%clk 0:02:23.7]} 12. a3 {[%clk 0:02:00.6]} 12... e6
{[%clk 0:02:13.7]} 13. Bd3 {[%clk 0:01:56.9]} 13... Be7 {[%clk 0:02:06.8]} 14.
O-O {[%clk 0:01:54.5]} 14... O-O {[%clk 0:02:06.7]} 15. h3 {[%clk 0:01:36.8]}
15... Nd7 {[%clk 0:01:53.1]} 16. b4 {[%clk 0:01:25.5]} 16... b5 {[%clk
0:01:07.9]} 17. Nc5 {[%clk 0:01:18.5]} 17... Nxc5 {[%clk 0:01:07.2]} 18. dxc5
{[%clk 0:01:18.1]} 18... f5 {[%clk 0:01:04.3]} 19. Qb3 {[%clk 0:00:59.3]} 19...
Qd7 {[%clk 0:01:03.5]} 20. Rfd1 {[%clk 0:00:48.3]} 20... Qb7 {[%clk 0:01:01.2]}
21. Bg3 {[%clk 0:00:36.7]} 21... Rfd8 {[%clk 0:00:58.2]} 22. Be2 {[%clk
0:00:25.7]} 22... Bf6 {[%clk 0:00:56.7]} 23. Bf3 {[%clk 0:00:24.2]} 23... Be5
{[%clk 0:00:46.5]} 24. Bh4 {[%clk 0:00:20.5]} 24... Rd7 {[%clk 0:00:43.1]} 25.
Rd2 {[%clk 0:00:07.9]} 25... Bf6 {[%clk 0:00:40.2]} 26. Bg3 {[%clk 0:00:07.4]}
26... h6 {[%clk 0:00:33]} 27. Rcd1 {[%clk 0:00:07.1]} 27... Rcd8 {[%clk
0:00:33.1]} 28. Qc2 {[%clk 0:00:06.7]} 28... Be5 {[%clk 0:00:30.4]} 29. Bxe5
{[%clk 0:00:05]} 29... Nxe5 {[%clk 0:00:31.3]} 30. Be2 {[%clk 0:00:05.5]} 30...
Kf7 {[%clk 0:00:23.1]} 31. f4 {[%clk 0:00:05.2]} 31... Nc4 {[%clk 0:00:19.9]}
32. Bxc4 {[%clk 0:00:04.6]} 32... bxc4 {[%clk 0:00:20.8]} 33. g4 {[%clk
0:00:04.3]} 33... g6 {[%clk 0:00:20.5]} 34. Kh2 {[%clk 0:00:03.6]} 34... Rg8
{[%clk 0:00:19.9]} 35. Qc3 {[%clk 0:00:03.7]} 35... Qc6 {[%clk 0:00:18.6]} 36.
Qe5 {[%clk 0:00:03.9]} 36... a5 {[%clk 0:00:16.4]} 37. Rg2 {[%clk 0:00:04.4]}
37... axb4 {[%clk 0:00:15]} 38. axb4 {[%clk 0:00:05.3]} 38... Ra7 {[%clk
0:00:15.4]} 39. Rdg1 {[%clk 0:00:05.7]} 39... Rg7 {[%clk 0:00:14.4]} 40. gxf5
{[%clk 0:00:06]} 40... exf5 {[%clk 0:00:15.3]} 41. Qxf5+ {[%clk 0:00:05.2]}
41... gxf5 {[%clk 0:00:14.2]} 42. Rxg7+ {[%clk 0:00:06.1]} 42... Ke8 {[%clk
0:00:13]} 43. Rg8+ {[%clk 0:00:06.5]} 43... Ke7 {[%clk 0:00:12.2]} 44. R1g7+
{[%clk 0:00:06.8]} 44... Kf6 {[%clk 0:00:12.5]} 45. Rg6+ {[%clk 0:00:07.1]}
45... Kf7 {[%clk 0:00:12.8]} 46. Rxc6 {[%clk 0:00:06.7]} 46... Kxg8 {[%clk
0:00:13.1]} 47. b5 {[%clk 0:00:06.5]} 47... c3 {[%clk 0:00:13.4]} 48. b6 {[%clk
0:00:06.4]} 48... Ra2+ {[%clk 0:00:13.4]} 49. Kg3 {[%clk 0:00:06.2]} 49... c2
{[%clk 0:00:13.7]} 50. b7 {[%clk 0:00:05.6]} 50... Rb2 {[%clk 0:00:10.8]} 51.
Rb6 {[%clk 0:00:06.1]} 51... c1=Q {[%clk 0:00:07.5]} 52. b8=Q+ {[%clk
0:00:05.9]} 52... Kf7 {[%clk 0:00:06.4]} 53. Rxb2 {[%clk 0:00:06.1]} 53... Qxe3+
{[%clk 0:00:03.4]} 54. Kg2 {[%clk 0:00:06.2]} 54... Qe4+ {[%clk 0:00:02.6]} 55.
Kg3 {[%clk 0:00:06.4]} 55... Qe1+ {[%clk 0:00:01.9]} 56. Kf3 {[%clk 0:00:05.8]}
1-0

[Event "*** Titled Tuesday Blitz"]
[Site "Chess.com"]
[Date "2020.05.12"]
[Round "7"]
[White "14Sokol88"]
[Black "cukin84"]
[Result "1-0"]
[WhiteElo "2384"]
[BlackElo "2128"]
[TimeControl "180+1"]
[EndTime "11:17:36 PDT"]
[Termination "14Sokol88 won by checkmate"]

1. e4 {[%clk 0:03:00.9]} 1... c6 {[%clk 0:02:59.4]} 2. d4 {[%clk 0:02:58.9]}
2... d5 {[%clk 0:02:59.5]} 3. Nc3 {[%clk 0:02:59.3]} 3... a6 {[%clk 0:02:58.9]}
4. Bd3 {[%clk 0:02:52.3]} 4... dxe4 {[%clk 0:02:58.1]} 5. Bxe4 {[%clk 0:02:46]}
5... Nf6 {[%clk 0:02:57.4]} 6. Bf3 {[%clk 0:02:43.5]} 6... Bf5 {[%clk
0:02:56.6]} 7. Nge2 {[%clk 0:02:40.1]} 7... e6 {[%clk 0:02:56.7]} 8. Ng3 {[%clk
0:02:31.1]} 8... Bg6 {[%clk 0:02:56.1]} 9. Nce4 {[%clk 0:02:30.6]} 9... Nbd7
{[%clk 0:02:51.2]} 10. O-O {[%clk 0:02:29.4]} 10... Nxe4 {[%clk 0:02:47.6]} 11.
Nxe4 {[%clk 0:02:27.1]} 11... Nf6 {[%clk 0:02:47.7]} 12. Nxf6+ {[%clk
0:02:22.8]} 12... Qxf6 {[%clk 0:02:46.5]} 13. Be3 {[%clk 0:02:20.7]} 13... Bd6
{[%clk 0:02:44.6]} 14. Qd2 {[%clk 0:02:06.4]} 14... h6 {[%clk 0:02:36.2]} 15. c4
{[%clk 0:01:43.9]} 15... O-O {[%clk 0:02:33.6]} 16. Rfe1 {[%clk 0:01:41.6]}
16... Qh4 {[%clk 0:02:28]} 17. g3 {[%clk 0:01:35.7]} 17... Qf6 {[%clk
0:02:27.3]} 18. Bg2 {[%clk 0:01:32.9]} 18... Rad8 {[%clk 0:02:26.9]} 19. Qc3
{[%clk 0:01:27]} 19... c5 {[%clk 0:02:09.9]} 20. Bxb7 {[%clk 0:01:10.9]} 20...
Rb8 {[%clk 0:01:46.8]} 21. Bg2 {[%clk 0:01:07.4]} 21... Bh5 {[%clk 0:01:26]} 22.
a3 {[%clk 0:00:58.3]} 22... a5 {[%clk 0:01:16.6]} 23. Rac1 {[%clk 0:00:41.9]}
23... a4 {[%clk 0:00:59.4]} 24. d5 {[%clk 0:00:32.9]} 24... Rxb2 {[%clk
0:00:52.6]} 25. Qxf6 {[%clk 0:00:31.6]} 25... gxf6 {[%clk 0:00:52.2]} 26. dxe6
{[%clk 0:00:30.8]} 26... fxe6 {[%clk 0:00:52.4]} 27. Bxh6 {[%clk 0:00:26.3]}
27... Re8 {[%clk 0:00:52.1]} 28. h3 {[%clk 0:00:21.9]} 28... Bg6 {[%clk
0:00:44.8]} 29. Rcd1 {[%clk 0:00:20.7]} 29... Be5 {[%clk 0:00:38.3]} 30. Rd7
{[%clk 0:00:19.9]} 30... Bf7 {[%clk 0:00:35.7]} 31. Bc6 {[%clk 0:00:13.7]} 31...
Rc8 {[%clk 0:00:32.3]} 32. Bxa4 {[%clk 0:00:12.4]} 32... Bd4 {[%clk 0:00:22.2]}
33. Be3 {[%clk 0:00:11.5]} 33... Be5 {[%clk 0:00:21.1]} 34. Bb5 {[%clk
0:00:10.1]} 34... Be8 {[%clk 0:00:19.9]} 35. Re7 {[%clk 0:00:09.1]} 35... Bxb5
{[%clk 0:00:19.8]} 36. cxb5 {[%clk 0:00:09.9]} 36... c4 {[%clk 0:00:19.7]} 37.
Rxe6 {[%clk 0:00:07.2]} 37... c3 {[%clk 0:00:19.9]} 38. Rc6 {[%clk 0:00:07.3]}
38... Rxc6 {[%clk 0:00:18.2]} 39. bxc6 {[%clk 0:00:08.2]} 39... c2 {[%clk
0:00:18.5]} 40. Kg2 {[%clk 0:00:08.3]} 40... Rb1 {[%clk 0:00:18]} 41. Re2 {[%clk
0:00:07.8]} 41... c1=Q {[%clk 0:00:17.2]} 42. Bxc1 {[%clk 0:00:08]} 42... Rxc1
{[%clk 0:00:17.9]} 43. f4 {[%clk 0:00:08.4]} 43... Bc7 {[%clk 0:00:16.8]} 44.
Re8+ {[%clk 0:00:08.2]} 44... Kf7 {[%clk 0:00:16.5]} 45. Re2 {[%clk 0:00:08.2]}
45... Rxc6 {[%clk 0:00:16.4]} 46. h4 {[%clk 0:00:07.4]} 46... Ba5 {[%clk
0:00:16]} 47. Kh3 {[%clk 0:00:07.8]} 47... Rd6 {[%clk 0:00:15.5]} 48. Re4 {[%clk
0:00:08]} 48... f5 {[%clk 0:00:14.9]} 49. Ra4 {[%clk 0:00:08.3]} 49... Rd5
{[%clk 0:00:13.9]} 50. g4 {[%clk 0:00:08.2]} 50... fxg4+ {[%clk 0:00:13.2]} 51.
Kxg4 {[%clk 0:00:09.1]} 51... Kf6 {[%clk 0:00:12.9]} 52. h5 {[%clk 0:00:09.5]}
52... Kg7 {[%clk 0:00:12.2]} 53. Rc4 {[%clk 0:00:09.9]} 53... Rb5 {[%clk
0:00:12]} 54. Rc6 {[%clk 0:00:10.2]} 54... Be1 {[%clk 0:00:10.9]} 55. Ra6 {[%clk
0:00:10.7]} 55... Rb3 {[%clk 0:00:10.2]} 56. Ra7+ {[%clk 0:00:10.6]} 56... Kg8
{[%clk 0:00:09.6]} 57. Ra6 {[%clk 0:00:11]} 57... Rg3+ {[%clk 0:00:09.1]} 58.
Kf5 {[%clk 0:00:11.2]} 58... Rh3 {[%clk 0:00:09]} 59. h6 {[%clk 0:00:11]} 59...
Rh5+ {[%clk 0:00:08.4]} 60. Kg6 {[%clk 0:00:10.5]} 60... Rh3 {[%clk 0:00:08.2]}
61. Ra8# {[%clk 0:00:10.6]} 1-0

[Event "*** Titled Tuesday Blitz"]
[Site "Chess.com"]
[Date "2020.05.12"]
[Round "7"]
[White "MasterKroket"]
[Black "Kensei26"]
[Result "0-1"]
[WhiteElo "2416"]
[BlackElo "2242"]
[TimeControl "180+1"]
[EndTime "11:17:38 PDT"]
[Termination "Kensei26 won by resignation"]

1. d4 {[%clk 0:03:00.9]} 1... Nf6 {[%clk 0:02:59.4]} 2. c4 {[%clk 0:03:01.5]}
2... c5 {[%clk 0:02:59.3]} 3. d5 {[%clk 0:03:01.4]} 3... e6 {[%clk 0:02:59.8]}
4. Nc3 {[%clk 0:03:01.4]} 4... exd5 {[%clk 0:03:00.4]} 5. cxd5 {[%clk
0:03:02.3]} 5... d6 {[%clk 0:03:01.1]} 6. e4 {[%clk 0:03:02.9]} 6... g6 {[%clk
0:03:01.7]} 7. Nf3 {[%clk 0:03:03.4]} 7... a6 {[%clk 0:03:00.9]} 8. a4 {[%clk
0:03:00.3]} 8... Bg4 {[%clk 0:03:01.3]} 9. Bf4 {[%clk 0:02:54.8]} 9... Bxf3
{[%clk 0:02:57]} 10. Qxf3 {[%clk 0:02:54.2]} 10... Bg7 {[%clk 0:02:55.9]} 11.
Bd3 {[%clk 0:02:49.7]} 11... O-O {[%clk 0:02:55.9]} 12. O-O {[%clk 0:02:48.5]}
12... Qe7 {[%clk 0:02:44.5]} 13. a5 {[%clk 0:02:17]} 13... Nbd7 {[%clk
0:02:43.5]} 14. Na4 {[%clk 0:02:14.7]} 14... Rac8 {[%clk 0:02:40.6]} 15. Rfe1
{[%clk 0:02:10]} 15... c4 {[%clk 0:02:38.7]} 16. Bc2 {[%clk 0:02:08.9]} 16...
Ne5 {[%clk 0:01:25.4]} 17. Qe3 {[%clk 0:02:07.3]} 17... Nh5 {[%clk 0:01:18.8]}
18. Bg5 {[%clk 0:02:02.5]} 18... Bf6 {[%clk 0:01:10.5]} 19. Bh6 {[%clk
0:02:02.7]} 19... Bg7 {[%clk 0:01:09.3]} 20. Bxg7 {[%clk 0:02:01.6]} 20... Kxg7
{[%clk 0:00:56.7]} 21. f4 {[%clk 0:02:02.1]} 21... Nd7 {[%clk 0:00:55.8]} 22. g4
{[%clk 0:01:56]} 22... Nhf6 {[%clk 0:00:45.7]} 23. h3 {[%clk 0:01:55.8]} 23...
Rfe8 {[%clk 0:00:45]} 24. Qd4 {[%clk 0:01:53.2]} 24... Kg8 {[%clk 0:00:39.1]}
25. Re3 {[%clk 0:01:51.3]} 25... Nc5 {[%clk 0:00:32.9]} 26. Nb6 {[%clk
0:01:39.1]} 26... Rc7 {[%clk 0:00:32.6]} 27. Rae1 {[%clk 0:01:37.4]} 27... Nfd7
{[%clk 0:00:31]} 28. e5 {[%clk 0:01:31.8]} 28... dxe5 {[%clk 0:00:26.1]} 29.
fxe5 {[%clk 0:01:29.8]} 29... Nxb6 {[%clk 0:00:24.2]} 30. axb6 {[%clk
0:01:18.2]} 30... Rcc8 {[%clk 0:00:24.3]} 31. d6 {[%clk 0:01:06.2]} 31... Qd8
{[%clk 0:00:21.1]} 32. Rf1 {[%clk 0:01:01.5]} 32... Ne6 {[%clk 0:00:18.4]} 33.
Qe4 {[%clk 0:00:45.9]} 33... Rf8 {[%clk 0:00:15.5]} 34. Kh2 {[%clk 0:00:44.1]}
34... Qxb6 {[%clk 0:00:15.7]} 35. Re2 {[%clk 0:00:35.6]} 35... Rcd8 {[%clk
0:00:15.2]} 36. Ref2 {[%clk 0:00:34.6]} 36... Qxb2 {[%clk 0:00:13.4]} 37. Bb1
{[%clk 0:00:28.4]} 37... Qd4 {[%clk 0:00:13.5]} 38. Qe2 {[%clk 0:00:24.2]} 38...
Ng5 {[%clk 0:00:13.4]} 39. Rf4 {[%clk 0:00:22.2]} 39... Qd5 {[%clk 0:00:12.9]}
40. Rxc4 {[%clk 0:00:12.7]} 40... Rde8 {[%clk 0:00:12.5]} 41. h4 {[%clk
0:00:03.3]} 41... Ne6 {[%clk 0:00:10.8]} 42. Rc3 {[%clk 0:00:02.8]} 42... Nd4
{[%clk 0:00:10.6]} 43. Qe3 {[%clk 0:00:02.5]} 43... Rxe5 {[%clk 0:00:10.7]} 44.
Qg3 {[%clk 0:00:03.2]} 44... Nf3+ {[%clk 0:00:10.5]} 45. Rfxf3 {[%clk
0:00:03.1]} 45... Re2+ {[%clk 0:00:09.7]} 46. Kh3 {[%clk 0:00:03.5]} 46... Qd1
{[%clk 0:00:09.2]} 47. g5 {[%clk 0:00:03]} 47... Qh1+ {[%clk 0:00:09.2]} 48. Kg4
{[%clk 0:00:03.5]} 48... Rg2 {[%clk 0:00:09.5]} 49. d7 {[%clk 0:00:02.7]} 49...
Rxg3+ {[%clk 0:00:10.2]} 50. Rxg3 {[%clk 0:00:03]} 50... Qxb1 {[%clk 0:00:11]}
51. Rc8 {[%clk 0:00:02.5]} 51... Qe4+ {[%clk 0:00:11.6]} 52. Kh3 {[%clk
0:00:02.2]} 52... Qe6+ {[%clk 0:00:11.8]} 53. Rg4 {[%clk 0:00:02.6]} 53... Qxd7
{[%clk 0:00:12.7]} 54. Rc4 {[%clk 0:00:02.4]} 54... b5 {[%clk 0:00:11.7]} 55.
Rd4 {[%clk 0:00:03]} 55... Qe6 {[%clk 0:00:11]} 56. Kg3 {[%clk 0:00:02.6]} 56...
Rb8 {[%clk 0:00:10.8]} 57. Rgf4 {[%clk 0:00:03.5]} 57... b4 {[%clk 0:00:10.9]}
58. Rde4 {[%clk 0:00:04.1]} 58... Qb3+ {[%clk 0:00:10.5]} 59. Kg4 {[%clk
0:00:04.2]} 59... a5 {[%clk 0:00:11]} 60. h5 {[%clk 0:00:04.8]} 60... Qd5 {[%clk
0:00:11.1]} 61. h6 {[%clk 0:00:05]} 61... Qd7+ {[%clk 0:00:10.8]} 62. Kg3 {[%clk
0:00:04.7]} 62... b3 {[%clk 0:00:11.4]} 63. Re1 {[%clk 0:00:04.6]} 63... a4
{[%clk 0:00:10.6]} 64. Rd1 {[%clk 0:00:05]} 64... Qxd1 {[%clk 0:00:09.8]} 0-1